bitfinex/quotes_ETHUSD_20250629
["timestamp","ask_amount","ask_price","bid_price","bid_amount"]
[1751160576865,10.0,2434.6,2434.4,3.02293245]
[1751160578382,14.91424639,2434.7,2434.4,3.02293245]
[1751160579683,14.91424639,2434.7,2434.4,0.1474806]
[1751160584264,14.91424639,2434.7,2434.5,2.87523964]
[1751160584468,8.30624639,2434.7,2434.5,2.87523964]
[1751160584668,5.66942118,2434.6,2434.5,2.87523964]
[1751160585372,5.66942118,2434.6,2434.5,3.65603964]
[1751160586993,5.66942118,2434.6,2434.5,0.7808]
[1751160588630,1.43564053,2435.8,2434.8,0.55]
[1751160588803,5.66942118,2435.5,2435.0,2.87466779]
[1751160589003,5.66942118,2435.5,2435.1,2.87451763]
[1751160589190,5.66942118,2435.5,2435.2,2.8744812]
[1751160589397,5.66942118,2435.3,2435.1,2.87454319]
[1751160589598,5.66942118,2435.3,2435.0,2.87468559]
[1751160592213,5.66942118,2435.3,2435.1,2.87461478]
[1751160592516,5.66942118,2435.3,2435.1,3.57461478]
[1751160592809,5.66942118,2435.3,2435.1,0.7]
[1751160592810,27.70603075,2435.2,2435.1,0.7]
[1751160593017,29.04291464,2435.2,2435.1,0.7]
[1751160593514,0.1028,2435.0,2434.4,3.0228793]
[1751160593709,8.09472353,2434.8,2434.4,3.0228793]
[1751160593913,8.09472353,2434.8,2434.4,3.68927305]
[1751160595716,8.09472353,2434.8,2434.5,2.87532505]
[1751160597521,8.09472353,2434.8,2434.6,0.7]
[1751160597822,2.97760735,2435.0,2434.6,0.7]
[1751160597823,8.19752353,2435.0,2434.6,3.57518999]
[1751160598623,0.2048,2434.9,2434.6,3.57518999]
[1751160599008,0.2048,2434.9,2434.6,2.87518999]
[1751160600220,0.2048,2434.9,2434.7,2.87502064]
[1751160600409,10.0,2435.1,2434.7,3.69509754]
[1751160600616,0.2048,2435.1,2434.7,3.69509754]
[1751160600920,10.2048,2435.1,2434.8,2.87497609]
[1751160601154,10.2048,2435.1,2434.7,3.69503389]
[1751160601292,10.2048,2435.1,2434.8,2.87496396]
[1751160601795,10.2048,2435.1,2434.7,4.44023814]
[1751160603018,13.07944262,2435.1,2434.7,4.44023814]
[1751160603222,8.09472353,2435.0,2434.6,3.07996071]
[1751160604826,8.09472353,2435.0,2434.7,2.87508214]
[1751160608832,8.09472353,2435.0,2434.6,3.07995346]
[1751160609418,8.19752353,2435.0,2434.6,3.07995346]
[1751160610730,8.19752353,2435.0,2434.6,3.83796438]
[1751160611634,8.19752353,2435.0,2434.7,0.7]
[1751160616936,8.19752353,2435.0,2434.7,3.57509318]
[1751160617132,8.19752353,2435.0,2434.7,0.7]
[1751160617436,0.2048,2434.9,2434.7,0.7]
[1751160622829,3.07966156,2434.9,2434.7,0.7]
[1751160623029,3.07966156,2434.9,2434.5,3.89108183]
[1751160623346,3.07966156,2434.9,2434.5,4.64922928]
[1751160624757,0.2048,2434.9,2434.5,1.77394745]
[1751160624954,10.96975676,2434.8,2434.4,0.1474806]
[1751160625113,11.17455676,2434.8,2434.4,0.1474806]
[1751160628655,2.8751036,2434.7,2434.4,0.1474806]
[1751160629012,2.9779036,2434.7,2434.4,0.1474806]
[1751160629851,0.1028,2434.7,2434.4,0.1474806]
[1751160631192,0.1028,2434.7,2434.4,3.02293083]
[1751160631453,11.17456627,2434.8,2434.4,3.02293083]
[1751160632868,11.17456627,2434.8,2434.4,0.1474806]
[1751160634079,2.87511804,2434.7,2434.4,0.1474806]
[1751160636162,8.09472353,2434.6,2434.4,0.1474806]
[1751160644590,5.66966586,2434.5,2434.4,0.1474806]
[1751160657528,5.66966586,2434.5,2434.4,3.02293245]
[1751160660226,0.2048,2434.8,2434.5,0.8278]
[1751160660395,5.66966586,2434.7,2434.5,0.8278]
[1751160662438,8.54476655,2434.7,2434.4,0.1474806]
[1751160662627,5.66966586,2434.5,2434.4,0.1474806]
[1751160671841,8.5449996,2434.5,2434.4,0.1474806]
[1751160674019,8.92228333,2434.5,2434.4,0.1474806]
[1751160674208,18.6477996,2434.5,2434.4,0.1474806]
[1751160681215,12.97813374,2434.5,2434.4,0.1474806]
[1751160703340,12.87533374,2434.5,2434.4,0.1474806]
[1751160710682,12.97813374,2434.5,2434.4,0.1474806]
[1751160710882,19.58513374,2434.5,2434.4,0.1474806]
[1751160711084,3.08025185,2434.4,2434.3,0.001]
[1751160711320,18.64827211,2434.1,2434.0,0.001]
[1751160720373,18.54547211,2434.1,2434.0,0.001]
[1751160721882,15.66966586,2434.1,2434.0,0.001]
[1751160722185,15.87446586,2434.1,2434.0,0.001]
[1751160726110,10.2048,2434.1,2434.0,0.001]
[1751160726409,15.66966586,2434.1,2434.0,0.001]
[1751160728909,18.54547211,2434.1,2434.0,0.001]
[1751160729113,15.87446586,2434.1,2434.0,0.001]
[1751160729316,18.75027211,2434.1,2434.0,0.001]
[1751160729816,15.87446586,2434.1,2434.0,0.001]
[1751160730119,15.87446586,2434.1,2433.7,3.75205238]
[1751160730319,5.66966586,2433.8,2433.7,3.75205238]
[1751160730523,5.66966586,2433.8,2433.7,4.41490655]
[1751160730817,5.66966586,2433.8,2433.7,1.53865417]
[1751160731388,5.66966586,2433.8,2433.7,4.41493308]
[1751160736196,5.66966586,2433.8,2433.7,3.75207891]
[1751160739730,5.66966586,2433.8,2433.7,0.8758]
[1751160748057,5.66966586,2433.8,2433.7,0.1058]
[1751160748254,5.77246586,2433.8,2433.7,0.1058]
[1751160748423,5.77246586,2433.8,2433.4,3.0823711]
[1751160748622,5.66966586,2433.5,2433.4,3.0823711]
[1751160748837,5.66966586,2433.5,2433.4,4.58852272]
[1751160751427,5.66966586,2433.5,2433.4,0.001]
[1751160751621,0.1028,2434.4,2433.6,0.55]
[1751160751961,0.1028,2434.4,2434.0,3.69123219]
[1751160751962,5.66966586,2434.4,2434.0,3.69123219]
[1751160752122,5.66966586,2434.4,2434.0,0.8154]
[1751160752322,5.66966586,2434.4,2434.1,2.87579018]
[1751160752736,10.0,2434.5,2434.1,2.87579018]
[1751160757833,10.0,2434.5,2434.0,3.69127292]
[1751160758666,8.10024956,2434.4,2434.0,3.69127292]
[1751160760374,8.20304956,2434.4,2434.0,3.69127292]
[1751160761668,8.40784956,2434.4,2434.0,3.69127292]
[1751160763179,8.40784956,2434.4,2434.1,2.87577306]
[1751160763349,8.30504956,2434.4,2434.1,3.57577306]
[1751160767961,0.2048,2434.4,2434.1,3.57577306]
[1751160768170,8.10024956,2434.6,2434.1,3.57577306]
[1751160768171,10.0,2434.6,2434.2,2.87561469]
[1751160768375,10.2048,2434.6,2434.2,3.64641469]
[1751160769649,10.2048,2434.6,2434.2,10.26644129]
[1751160769964,10.2048,2434.6,2434.3,2.87549283]
[1751160774373,10.2048,2434.6,2434.2,10.26642847]
[1751160774572,13.08007923,2434.6,2434.2,3.6464876]
[1751160774859,0.2048,2434.4,2434.1,6.618]
[1751160779057,0.2048,2434.4,2434.1,9.4937537]
[1751160779369,0.2048,2434.4,2434.2,2.87568114]
[1751160779771,0.2048,2434.4,2434.1,9.4937434]
[1751160781687,8.10024956,2434.5,2434.2,2.87567678]
[1751160783388,10.2048,2434.6,2434.3,0.8181]
[1751160783885,10.2048,2434.6,2434.4,2.8754459]
[1751160784290,0.002,2434.7,2434.5,6.618]
[1751160784492,10.002,2434.7,2434.5,6.618]
[1751160784687,11.07831693,2434.6,2434.1,3.69383747]
[1751160784875,8.10024956,2434.4,2434.3,6.619]
[1751160785284,8.10024956,2434.4,2434.1,3.08053747]
[1751160785596,8.10024956,2434.4,2434.2,6.619]
[1751160785965,8.10024956,2434.4,2434.1,0.2048]
[1751160786162,8.10024956,2434.4,2434.2,6.619]
[1751160786864,8.10024956,2434.4,2434.1,3.0805948]
[1751160787163,8.10024956,2434.4,2434.2,6.618]
[1751160788159,0.2048,2434.6,2434.2,8.81744529]
[1751160788384,0.2048,2434.6,2434.3,2.87550964]
[1751160788595,11.18036657,2434.6,2434.3,6.619]
[1751160788786,8.30504956,2434.6,2434.3,6.619]
[1751160790598,8.30504956,2434.6,2434.3,9.49455656]
[1751160791593,0.2048,2434.6,2434.3,9.49453213]
[1751160791792,10.002,2434.7,2434.5,3.64835178]
[1751160792296,10.002,2434.7,2434.6,2.87521564]
[1751160793082,0.002,2434.7,2434.6,2.87521564]
[1751160793488,0.002,2434.7,2434.6,3.67791564]
[1751160793801,0.002,2434.7,2434.6,4.53803238]
[1751160796424,0.002,2434.7,2434.6,5.08803238]
[1751160798702,0.002,2434.7,2434.6,12.84703238]
[1751160799401,0.002,2434.7,2434.6,7.48011674]
[1751160800906,0.002,2434.7,2434.6,10.35533238]
[1751160802211,0.002,2434.7,2434.6,7.48011674]
[1751160802412,0.002,2434.7,2434.6,0.86011674]
[1751160802612,0.002,2434.7,2434.6,7.48011674]
[1751160804288,0.002,2434.7,2434.6,10.35533238]
[1751160805706,0.002,2434.7,2434.6,7.48011674]
[1751160805911,0.002,2434.7,2434.6,7.47811674]
[1751160806426,0.002,2434.7,2434.6,0.86011674]
[1751160806899,0.002,2434.7,2434.6,10.35233238]
[1751160808221,0.002,2434.7,2434.6,9.69701564]
[1751160809328,0.002,2434.7,2434.6,6.617]
[1751160811039,0.002,2434.7,2434.6,9.49221564]
[1751160811918,0.002,2434.7,2434.6,9.69701564]
[1751160812329,0.002,2434.7,2434.6,10.51691564]
[1751160812625,0.002,2434.7,2434.6,11.85614025]
[1751160813838,0.002,2434.7,2434.6,12.55614025]
[1751160818008,0.002,2434.7,2434.6,13.10614025]
[1751160823611,0.002,2434.7,2434.6,23.10614025]
[1751160841565,0.002,2434.7,2434.6,40.98867181]
[1751160844438,0.002,2434.7,2434.6,40.35362781]
[1751160844767,0.002,2434.7,2434.6,23.10614025]
[1751160844967,0.002,2434.7,2434.6,24.78414025]
[1751160849845,0.002,2434.7,2434.6,29.10341225]
[1751160856185,0.002,2434.7,2434.6,27.11547425]
[1751160856554,0.002,2434.7,2434.6,26.85547425]
[1751160856756,0.002,2434.7,2434.6,24.78414025]
[1751160857450,0.002,2434.7,2434.6,24.78314025]
[1751160858654,0.002,2434.7,2434.6,24.78214025]
[1751160869467,0.002,2434.7,2434.6,32.02748225]
[1751160869686,0.002,2434.7,2434.6,37.44905925]
[1751160869982,0.002,2434.7,2434.6,37.16810925]
[1751160870766,0.002,2434.7,2434.6,44.50331925]
[1751160871676,0.002,2434.7,2434.6,44.87294425]
[1751160872489,0.002,2434.7,2434.6,49.19694425]
[1751160872661,0.002,2434.7,2434.6,59.10614025]
[1751160874997,0.002,2434.7,2434.6,46.02793625]
[1751160875185,0.002,2434.7,2434.6,47.56699525]
[1751160875593,0.002,2434.7,2434.6,47.19757925]
[1751160875887,0.002,2434.7,2434.6,47.57445425]
[1751160876863,0.002,2434.7,2434.6,47.72445425]
[1751160878986,0.002,2434.7,2434.6,50.52404825]
[1751160879697,0.002,2434.7,2434.6,49.67804825]
[1751160879996,0.002,2434.7,2434.6,49.15316325]
[1751160881584,0.002,2434.7,2434.6,55.18281325]
[1751160882808,0.002,2434.7,2434.6,49.73574825]
[1751160883814,0.002,2434.7,2434.6,50.84174825]
[1751160884896,0.002,2434.7,2434.6,51.45517025]
[1751160885097,0.002,2434.7,2434.6,50.60917025]
[1751160885803,0.002,2434.7,2434.6,50.34917025]
[1751160886108,0.002,2434.7,2434.6,50.60917025]
[1751160886980,0.002,2434.7,2434.6,50.49065525]
[1751160888406,0.002,2434.7,2434.6,51.39684325]
[1751160888817,0.002,2434.7,2434.6,50.55044425]
[1751160889615,0.002,2434.7,2434.6,55.97584725]
[1751160889993,0.002,2434.7,2434.6,50.29044425]
[1751160890315,0.002,2434.7,2434.6,44.93717581]
[1751160890611,0.002,2434.7,2434.6,46.42729581]
[1751160891712,0.002,2434.7,2434.6,46.69533881]
[1751160892713,0.002,2434.7,2434.6,37.52638981]
[1751160892915,0.002,2434.7,2434.6,53.61919081]
[1751160893916,0.002,2434.7,2434.6,54.90379081]
[1751160894986,0.002,2434.7,2434.6,46.61679081]
[1751160895296,0.002,2434.7,2434.6,54.90479081]
[1751160895921,0.002,2434.7,2434.6,49.04639581]
[1751160896922,0.002,2434.7,2434.6,48.54680981]
[1751160897819,0.002,2434.7,2434.6,37.52738981]
[1751160898021,0.002,2434.7,2434.6,48.54680981]
[1751160899029,0.002,2434.7,2434.6,50.00008881]
[1751160899890,0.002,2434.7,2434.6,37.52738981]
[1751160900092,0.002,2434.7,2434.6,50.26008881]
[1751160900619,0.002,2434.7,2434.6,37.52738981]
[1751160900915,0.002,2434.7,2434.6,49.12597981]
[1751160902625,0.002,2434.7,2434.6,49.14513381]
[1751160903005,0.002,2434.7,2434.6,48.74513381]
[1751160903620,0.002,2434.7,2434.6,49.85113381]
[1751160903924,0.002,2434.7,2434.6,48.74513381]
[1751160904726,0.002,2434.7,2434.6,51.97036019]
[1751160905729,0.002,2434.7,2434.6,52.87636019]
[1751160906226,0.002,2434.7,2434.6,51.77036019]
[1751160907828,0.002,2434.7,2434.6,52.91736019]
[1751160908031,0.002,2434.7,2434.6,51.81136019]
[1751160908693,0.002,2434.7,2434.6,56.13536019]
[1751160908899,0.002,2434.7,2434.6,52.91736019]
[1751160909926,0.002,2434.7,2434.6,62.76736019]
[1751160910118,0.002,2434.7,2434.6,57.45608419]
[1751160910325,0.002,2434.7,2434.6,65.74108419]
[1751160911125,0.002,2434.7,2434.6,50.59961619]
[1751160911329,0.002,2434.7,2434.6,65.74108419]
[1751160912431,0.002,2434.7,2434.6,62.98736019]
[1751160912934,0.002,2434.7,2434.6,54.70236019]
[1751160913135,0.002,2434.7,2434.6,61.71032719]
[1751160913925,0.002,2434.7,2434.6,60.05151319]
[1751160914430,0.002,2434.7,2434.6,59.85151319]
[1751160914828,0.002,2434.7,2434.6,39.42113725]
[1751160915007,0.002,2434.7,2434.6,44.11697822]
[1751160915208,0.002,2434.7,2434.6,43.56697822]
[1751160915598,0.002,2434.7,2434.6,44.11697822]
[1751160918040,0.002,2434.7,2434.6,39.46697822]
[1751160923353,0.002,2434.7,2434.6,31.18197822]
[1751160923553,0.1048,2434.7,2434.6,39.46697822]
[1751160924078,0.1048,2434.7,2434.6,32.86397822]
[1751160924273,0.1048,2434.7,2434.6,39.46697822]
[1751160924634,0.1048,2434.7,2434.6,32.86397822]
[1751160924864,0.1048,2434.7,2434.6,39.46697822]
[1751160925368,0.002,2434.7,2434.6,39.46697822]
[1751160925672,0.002,2434.7,2434.6,44.06393422]
[1751160927289,0.002,2434.7,2434.6,43.31017822]
[1751160927772,0.002,2434.7,2434.6,43.05017822]
[1751160932174,0.002,2434.7,2434.6,39.46697822]
[1751160932378,0.002,2434.7,2434.6,44.15617822]
[1751160933072,0.002,2434.7,2434.6,39.46697822]
[1751160933379,0.002,2434.7,2434.6,43.32217822]
[1751160934377,0.002,2434.7,2434.6,39.46697822]
[1751160934678,0.002,2434.7,2434.6,44.16817822]
[1751160935337,0.002,2434.7,2434.6,49.83091619]
[1751160936639,0.002,2434.7,2434.6,50.64891619]
[1751160940475,0.002,2434.7,2434.6,45.94771619]
[1751160940772,0.002,2434.7,2434.6,53.04928719]
[1751160941675,0.002,2434.7,2434.6,57.69928719]
[1751160942875,0.002,2434.7,2434.6,50.59771619]
[1751160943081,0.002,2434.7,2434.6,80.59771619]
[1751160944580,0.002,2434.7,2434.6,50.59771619]
[1751160944752,0.002,2434.7,2434.6,80.59771619]
[1751160946749,0.002,2434.7,2434.6,67.51397822]
[1751160946955,0.002,2434.7,2434.6,74.11697822]
[1751160948086,0.002,2434.7,2434.6,65.83197822]
[1751160948486,0.002,2434.7,2434.6,74.11697822]
[1751160949388,0.1048,2434.7,2434.6,67.51397822]
[1751160949566,0.1048,2434.7,2434.6,74.11697822]
[1751160950402,0.1048,2434.7,2434.6,65.83197822]
[1751160950557,0.1048,2434.7,2434.6,74.11697822]
[1751160952490,0.002,2434.7,2434.6,74.11697822]
[1751160953483,0.002,2434.7,2434.6,69.46697822]
[1751160954596,0.002,2434.7,2434.6,39.46697822]
[1751160954887,0.002,2434.7,2434.6,69.46697822]
[1751160956791,0.002,2434.7,2434.6,39.46697822]
[1751160956988,0.002,2434.7,2434.6,69.46697822]
[1751160962907,0.002,2434.7,2434.6,39.46697822]
[1751160963206,0.002,2434.7,2434.6,69.46697822]
[1751160966913,0.002,2434.7,2434.6,39.46697822]
[1751160967279,0.002,2434.7,2434.6,69.46697822]
[1751160968416,0.002,2434.7,2434.6,39.46697822]
[1751160968718,0.002,2434.7,2434.6,69.46697822]
[1751160969192,0.002,2434.7,2434.6,61.18197822]
[1751160969394,0.002,2434.7,2434.6,69.46597822]
[1751160970031,0.002,2434.7,2434.6,61.18197822]
[1751160970378,0.002,2434.7,2434.6,69.46597822]
[1751160974523,0.002,2434.7,2434.6,15.51924025]
[1751160974699,0.002,2434.7,2434.6,23.80324025]
[1751160975018,0.002,2434.7,2434.6,32.46401564]
[1751160975321,0.1048,2434.7,2434.6,3.78001564]
[1751160975488,0.1048,2434.7,2434.6,10.38301564]
[1751160976029,0.1048,2434.7,2434.6,3.78001564]
[1751160976197,0.1048,2434.7,2434.6,10.38301564]
[1751160980423,0.1048,2434.7,2434.6,3.78001564]
[1751160980627,0.1048,2434.7,2434.6,10.38301564]
[1751160982886,0.1048,2434.7,2434.6,10.38401564]
[1751160984904,0.1048,2434.7,2434.6,3.78001564]
[1751160985606,0.1048,2434.7,2434.6,10.38401564]
[1751160990109,0.1048,2434.7,2434.6,3.78001564]
[1751160990307,5.76753797,2434.7,2434.6,10.38401564]
[1751160991005,5.76753797,2434.7,2434.6,3.78001564]
[1751160991205,5.76753797,2434.7,2434.6,10.38401564]
[1751160992597,0.1048,2434.7,2434.6,10.38401564]
[1751160992799,0.1048,2434.7,2434.6,0.7]
[1751160992993,0.1048,2434.7,2434.4,3.08019252]
[1751160993233,0.1048,2434.7,2434.5,6.604]
[1751160994202,0.1048,2434.7,2434.5,9.47930645]
[1751161000253,0.1048,2434.7,2434.5,9.47927385]
[1751161004867,0.1048,2434.7,2434.4,0.2048]
[1751161005169,0.1028,2434.4,2434.0,3.08066849]
[1751161005463,0.1028,2434.4,2434.0,9.48086849]
[1751161005464,0.3076,2434.3,2434.0,9.48086849]
[1751161006219,0.1028,2434.2,2433.8,4.76293325]
[1751161006448,0.1028,2434.2,2433.9,6.605]
[1751161007555,10.97311062,2434.2,2433.7,2.87624804]
[1751161007760,0.3076,2434.1,2433.9,6.605]
[1751161009961,0.1028,2434.0,2433.7,9.68604804]
[1751161011967,0.1028,2434.0,2433.8,2.87610949]
[1751161013065,0.1028,2434.0,2433.7,9.68601202]
[1751161013671,0.1028,2434.0,2433.7,3.08101202]
[1751161013968,0.1028,2434.0,2433.7,9.68701202]
[1751161014367,0.1028,2434.0,2433.8,2.87615563]
[1751161014572,0.1028,2434.0,2433.7,9.68701253]
[1751161016168,8.2001636,2434.0,2433.7,9.68701253]
[1751161016371,8.2001636,2434.0,2433.8,2.87615346]
[1751161017767,8.2001636,2434.0,2433.9,2.87604256]
[1751161017965,0.1028,2434.0,2433.8,2.87609175]
[1751161018771,0.2048,2434.1,2433.8,2.87609175]
[1751161019069,0.2048,2434.1,2433.9,2.87603559]
[1751161020883,0.2048,2434.1,2434.0,2.8759244]
[1751161022756,0.2048,2434.3,2434.2,2.87567776]
[1751161023072,10.1028,2434.4,2434.2,2.87567776]
[1751161023861,0.2048,2434.5,2434.3,2.87551501]
[1751161024063,0.3076,2434.6,2434.2,3.08042516]
[1751161024562,8.4049636,2434.6,2434.2,3.08042516]
[1751161024765,10.0,2434.5,2434.2,3.08042516]
[1751161025966,10.0,2434.5,2434.3,2.87550219]
[1751161026161,10.0,2434.5,2434.2,3.08042056]
[1751161026479,10.0,2434.5,2434.3,2.87556574]
[1751161027282,0.1028,2434.3,2434.0,9.48186573]
[1751161029571,0.1028,2434.3,2434.0,2.87586573]
[1751161034450,10.2048,2434.4,2434.0,2.87586573]
[1751161035973,10.2048,2434.4,2434.1,2.87579799]
[1751161036170,10.0,2434.4,2434.2,2.87563852]
[1751161036576,10.0,2434.4,2434.1,3.08053713]
[1751161042290,10.0,2434.4,2434.1,0.2048]
[1751161044607,10.0,2434.4,2434.1,3.08058629]
[1751161045594,10.0,2434.4,2434.1,0.2048]
[1751161046077,8.0973636,2434.3,2433.6,0.55]
[1751161046282,0.1028,2434.2,2433.9,0.2048]
[1751161048463,8.0973636,2434.1,2433.9,6.606]
[1751161048960,10.97322073,2434.1,2433.6,2.87633486]
[1751161049281,11.17802073,2434.1,2433.7,6.606]
[1751161049485,11.17802073,2434.1,2433.7,9.4822513]
[1751161049687,11.17802073,2434.1,2433.7,6.606]
[1751161049886,11.17802073,2434.1,2433.6,3.08110513]
[1751161050089,11.17802073,2434.1,2433.7,6.606]
[1751161050299,11.17802073,2434.1,2433.6,3.08110513]
[1751161050487,11.17802073,2434.1,2433.7,6.606]
[1751161053003,8.3021636,2434.1,2433.7,9.48224951]
[1751161053203,8.0973636,2433.9,2433.6,0.2048]
[1751161053382,8.2001636,2433.9,2433.7,6.606]
[1751161054104,0.1028,2433.9,2433.7,6.606]
[1751161058606,0.1028,2433.9,2433.6,3.08118275]
[1751161058809,0.1028,2433.9,2433.7,6.606]
[1751161059506,0.1028,2433.9,2433.6,0.2048]
[1751161059707,8.0973636,2433.8,2433.6,0.2048]
[1751161060013,8.0973636,2433.8,2433.4,2.8776231]
[1751161060014,2.87633279,2433.7,2433.4,0.001]
[1751161060190,2.87633279,2433.7,2433.4,6.607]
[1751161060377,2.87633279,2433.7,2433.4,0.001]
[1751161060577,8.3021636,2433.8,2433.4,0.001]
[1751161060884,11.17833213,2433.8,2433.4,0.001]
[1751161063219,0.2048,2433.8,2433.4,0.001]
[1751161063423,0.2048,2433.8,2433.5,2.87646248]
[1751161064626,0.2048,2433.8,2433.6,2.87639506]
[1751161065824,0.2048,2433.8,2433.5,2.87645719]
[1751161067094,0.2048,2433.8,2433.6,2.87638092]
[1751161068738,0.2048,2433.8,2433.5,2.87645371]
[1751161072049,0.1028,2434.2,2433.7,0.7915]
[1751161072245,10.3076,2434.2,2433.8,2.87609943]
[1751161072419,13.18330317,2434.2,2433.8,2.87609943]
[1751161073950,10.3076,2434.2,2433.8,2.87609943]
[1751161075943,8.0973636,2434.1,2433.7,10.47951768]
[1751161079544,8.0973636,2434.1,2433.8,2.87613829]
[1751161080147,8.0973636,2434.1,2433.7,10.47951764]
[1751161080525,10.0,2434.0,2433.7,10.47951764]
[1751161088649,5.67209209,2433.9,2433.7,10.47951764]
[1751161091459,15.67209209,2433.9,2433.8,2.87616073]
[1751161091616,15.67209209,2433.9,2433.7,10.47948699]
[1751161092058,15.67209209,2433.9,2433.8,2.87616073]
[1751161092738,5.67209209,2434.2,2434.0,2.87584396]
[1751161092948,5.67209209,2434.2,2434.0,0.2048]
[1751161093157,5.67209209,2434.2,2434.1,2.87580625]
[1751161093863,5.67209209,2434.2,2434.0,9.68666659]
[1751161094680,0.2048,2434.3,2434.0,9.68666659]
[1751161096867,0.2048,2434.3,2434.1,2.87579707]
[1751161100390,0.2048,2434.3,2434.0,9.68668395]
[1751161101172,8.10106437,2434.2,2434.0,0.2048]
[1751161101377,8.10106437,2434.2,2433.9,6.606]
[1751161101967,8.10106437,2434.0,2433.9,6.606]
[1751161103773,8.10106437,2434.0,2433.8,3.08089579]
[1751161104077,8.10106437,2434.0,2433.9,6.605]
[1751161104252,8.10106437,2434.1,2433.8,3.08089579]
[1751161104452,8.10106437,2434.1,2433.9,6.605]
[1751161105970,0.3076,2434.0,2433.8,6.605]
[1751161106271,8.10106437,2433.9,2433.8,6.605]
[1751161107482,0.2048,2434.0,2433.8,9.48116073]
[1751161107779,8.10106437,2434.1,2433.8,9.4810943]
[1751161109752,8.10106437,2434.1,2433.9,2.87601062]
[1751161110079,8.10106437,2434.1,2433.8,9.48109552]
[1751161111754,8.10106437,2434.1,2433.9,2.87603125]
[1751161111956,8.10106437,2434.1,2433.8,10.25241019]
[1751161118286,8.10106437,2434.1,2433.9,2.87603061]
[1751161118591,10.2048,2434.2,2433.8,7.3763]
[1751161118762,10.0,2434.3,2434.1,2.87580625]
[1751161118960,10.0,2434.3,2434.1,9.48080625]
[1751161119361,10.0,2434.3,2434.2,2.87568811]
[1751161119893,10.0,2434.3,2434.1,9.48074664]
[1751161120861,10.0,2434.3,2434.1,6.605]
[1751161121998,10.0,2434.3,2434.1,9.48078823]
[1751161123498,10.0,2434.3,2434.2,2.87568811]
[1751161125893,10.0,2434.3,2434.1,9.48075024]
[1751161127198,10.0,2434.3,2434.2,2.87568811]
[1751161128098,10.0,2434.3,2434.1,9.48076554]
[1751161128567,5.67092813,2434.2,2434.1,9.48076554]
[1751161144011,10.0,2434.3,2434.2,2.87568811]
[1751161145111,10.0,2434.3,2434.2,3.70348811]
[1751161154794,10.0,2434.3,2434.2,4.40348811]
[1751161155416,5.67092813,2434.4,2434.3,2.87556997]
[1751161155722,5.67092813,2434.4,2434.3,9.47956997]
[1751161156895,5.67092813,2434.4,2434.3,6.604]
[1751161165533,5.67092813,2434.4,2434.1,3.08054864]
[1751161165732,5.67092813,2434.4,2434.2,6.604]
[1751161166604,5.67092813,2434.4,2434.2,9.47966066]
[1751161167134,5.67092813,2434.4,2434.3,0.7]
[1751161172312,5.77372813,2434.4,2434.3,0.7]
[1751161172515,8.6491934,2434.4,2434.0,0.2048]
[1751161172733,5.67092813,2434.1,2434.0,0.2048]
[1751161172942,5.67092813,2434.1,2434.0,6.8078]
[1751161173623,5.67092813,2434.1,2434.0,9.6837244]
[1751161177327,5.67092813,2434.1,2434.0,6.8078]
[1751161178065,5.67092813,2434.1,2434.0,9.6837244]
[1751161179370,5.67092813,2434.1,2434.0,3.0807244]
[1751161179563,5.67092813,2434.1,2434.0,9.6837244]
[1751161182162,5.67092813,2434.1,2434.0,10.3837244]
[1751161204777,5.67092813,2434.2,2434.1,2.87579537]
[1751161210605,0.1028,2434.4,2434.1,2.87579537]
[1751161210915,5.67092813,2434.2,2434.1,2.87579537]
[1751161219911,5.67092813,2434.2,2434.0,10.38367343]
[1751161220711,5.67092813,2434.2,2434.0,7.5078]
[1751161220920,5.77372813,2434.2,2434.0,7.5068]
[1751161221411,0.2048,2434.1,2434.0,0.7]
[1751161221717,0.2048,2434.1,2433.9,6.602]
[1751161221885,5.67092813,2434.0,2433.9,6.602]
[1751161223710,5.67092813,2434.0,2433.7,3.08102468]
[1751161223915,5.67092813,2434.0,2433.8,6.602]
[1751161224888,5.67092813,2434.0,2433.7,9.68302468]
[1751161225088,8.54708886,2433.8,2433.7,0.2048]
[1751161225325,2.8765153,2433.5,2433.4,0.001]
[1751161225611,18.65024343,2433.5,2433.4,0.001]
[1751161225815,26.66908465,2433.5,2433.4,0.001]
[1751161226601,23.43768017,2433.5,2433.4,0.001]
[1751161228307,30.06068017,2433.5,2433.4,0.001]
[1751161229321,27.71276708,2433.5,2433.4,0.001]
[1751161229613,29.39276708,2433.5,2433.4,0.001]
[1751161232020,29.70504619,2433.5,2433.4,0.001]
[1751161240827,29.70204619,2433.5,2433.4,0.001]
[1751161242303,29.70904619,2433.5,2433.4,0.001]
[1751161244395,21.40204619,2433.5,2433.4,0.001]
[1751161244617,29.70804619,2433.5,2433.4,0.001]
[1751161246628,32.95167269,2433.5,2433.4,0.001]
[1751161251196,24.64567269,2433.5,2433.4,0.001]
[1751161251507,27.27263355,2433.5,2433.4,0.001]
[1751161253598,26.85755444,2433.5,2433.4,0.001]
[1751161255531,27.26854827,2433.5,2433.4,0.001]
[1751161255733,32.94558741,2433.5,2433.4,0.001]
[1751161261854,27.26854827,2433.5,2433.4,0.001]
[1751161263471,32.94558741,2433.5,2433.4,0.001]
[1751161264867,27.26854827,2433.5,2433.4,0.001]
[1751161265380,32.94558741,2433.5,2433.4,0.001]
[1751161266127,27.26454827,2433.5,2433.4,0.001]
[1751161266330,18.86174827,2433.5,2433.4,0.001]
[1751161266576,27.16074827,2433.5,2433.4,0.001]
[1751161267529,18.86174827,2433.5,2433.4,0.001]
[1751161267730,27.16074827,2433.5,2433.4,0.001]
[1751161269571,27.15974827,2433.5,2433.4,0.001]
[1751161269860,32.93958741,2433.5,2433.4,0.001]
[1751161293163,12.8769882,2433.1,2433.0,0.001]
[1751161293390,26.84402734,2433.1,2433.0,0.001]
[1751161306626,21.1669882,2433.1,2433.0,0.001]
[1751161308246,12.8769882,2433.1,2433.0,0.001]